fUST/lending_fUST_20240423
["ID","MTS","AMOUNT","RATE_DAILY","PERIOD"]
[323264744,1713857440610,-500.0,0.00021917,2]
[323264746,1713857440619,-500.0,0.00021917,2]
[323264748,1713857440628,-500.0,0.00021917,2]
[323264750,1713857440636,-500.0,0.00021917,2]
[323264752,1713857440645,-500.0,0.00021917,2]
[323264754,1713857440657,-500.0,0.00021917,2]
[323264756,1713857440665,-500.0,0.00021917,2]
[323264758,1713857440674,-500.0,0.00021917,2]
[323264760,1713857440683,-500.0,0.00021917,2]
[323264762,1713857440692,-629.29,0.00021917,2]
[323264764,1713857440700,-500.0,0.00021917,2]
[323264766,1713857440709,-1889.61,0.00021917,2]
[323264768,1713857440718,-501.6,0.00021917,2]
[323264770,1713857440727,-500.0,0.00021917,2]
[323264772,1713857440737,-500.0,0.00021917,2]
[323264774,1713857440746,-530.79,0.00021917,2]
[323264776,1713857440754,-500.0,0.00021917,2]
[323264778,1713857440763,-500.0,0.00021917,2]
[323264780,1713857440772,-1601.17,0.00021917,2]
[323264782,1713857440781,-1820.53,0.00021917,2]
[323264784,1713857440789,-500.0,0.00021917,2]
[323264786,1713857440798,-500.0,0.00021917,2]
[323264788,1713857440807,-2270.63,0.00021917,2]
[323264790,1713857440816,-500.0,0.00021917,2]
[323264792,1713857440825,-504.22179746,0.00021917,2]
[323264794,1713857440834,-500.0,0.00021917,2]
[323264796,1713857440843,-500.0,0.00021917,2]
[323264798,1713857440852,-500.0,0.00021917,2]
[323264800,1713857440861,-500.0,0.00021917,2]
[323264802,1713857440870,-500.0,0.00021917,2]
[323264804,1713857440879,-500.0,0.00021917,2]
[323264806,1713857440888,-500.0,0.00021917,2]
[323264808,1713857440897,-502.51233475,0.00021917,2]
[323264810,1713857440909,-509.53826186,0.00021917,2]
[323264812,1713857440918,-500.0,0.00021917,2]
[323264814,1713857440927,-500.0,0.00021917,2]
[323264816,1713857440936,-2360.19,0.00021917,2]
[323264818,1713857440944,-500.0,0.00021917,2]
[323264820,1713857440953,-527.86168637,0.00021917,2]
[323264822,1713857440962,-500.0,0.00021917,2]
[323264824,1713857440971,-500.0,0.00021917,2]
[323264826,1713857440980,-500.0,0.00021917,2]
[323264827,1713857440988,-500.0,0.00021917,2]
[323264828,1713857441095,-11820.51,0.00021917,2]
[323264829,1713857441104,-500.0,0.00021917,2]
[323264830,1713857441112,-1643.65,0.00021917,2]
[323264831,1713857441121,-500.0,0.00021917,2]
[323264832,1713857441130,-737.85,0.00021917,2]
[323264833,1713857441139,-687.51,0.00021917,2]
[323264834,1713857441148,-500.0,0.00021917,2]
[323264835,1713857441160,-500.0,0.00021917,2]
[323264836,1713857441168,-500.0,0.00021917,2]
[323264837,1713857441177,-500.0,0.00021917,2]
[323264838,1713857441186,-500.0,0.00021917,2]
[323264839,1713857441195,-500.0,0.00021917,2]
[323264840,1713857441203,-500.0,0.00021917,2]
[323264841,1713857441213,-545.35926924,0.00021917,2]
[323264842,1713857441222,-500.0,0.00021917,2]
[323264844,1713857441231,-613.00147131,0.00021917,2]
[323264846,1713857441241,-500.0,0.00021917,2]
[323264848,1713857441250,-846.49,0.00021917,2]
[323264850,1713857441259,-500.0,0.00021917,2]
[323264852,1713857441268,-500.0,0.00021917,2]
[323264854,1713857441277,-683.76,0.00021917,2]
[323264856,1713857441286,-500.0,0.00021917,2]
[323264858,1713857441295,-500.0,0.00021917,2]
[323264860,1713857441304,-645.11,0.00021917,2]
[323264862,1713857441317,-500.0,0.00021917,2]
[323264864,1713857441331,-1729.02,0.00021917,2]
[323264866,1713857441339,-500.0,0.00021917,2]
[323264868,1713857441348,-500.0,0.00021917,2]
[323264870,1713857441359,-527.48539434,0.00021917,2]
[323264872,1713857441368,-500.0,0.00021917,2]
[323264874,1713857441377,-1518.39,0.00021917,2]
[323264876,1713857441386,-500.0,0.00021917,2]
[323264878,1713857441395,-259.25988984,0.00021917,2]
[323264880,1713857441409,-1796.84,0.00021917,2]
[323264882,1713857441421,-500.0,0.00021917,2]
[323264883,1713857441430,-1244.08,0.00021917,2]
[323264885,1713857441439,-500.0,0.00021917,2]
[323264888,1713857441448,-500.0,0.00021917,2]
[323264889,1713857441458,-679.27,0.00021917,2]
[323264891,1713857441466,-3030.3,0.00021917,2]
[323264893,1713857441475,-500.0,0.00021917,2]
[323264895,1713857441484,-159.06202442,0.00022,2]
[323264897,1713857441493,-452.09087558,0.00022,2]
[323264899,1713857441502,-162.930037,0.00022122,2]
[323264901,1713857441511,-500.0,0.0002219,2]
[323264903,1713857441522,-500.0,0.00022191,2]
[323264905,1713857441531,-500.0,0.00022191,2]
[323264907,1713857441541,-500.0,0.00022191,2]
[323264909,1713857441550,-515.77253081,0.00022191,2]
[323264911,1713857441559,-500.0,0.00022191,2]
[323264913,1713857441569,-548.4,0.00022191,2]
[323264915,1713857441579,-500.0,0.00022191,2]
[323264917,1713857441589,-500.0,0.00022191,2]
[323264919,1713857441599,-500.0,0.00022191,2]
[323264921,1713857441608,-500.0,0.00022191,2]
[323264923,1713857441618,-500.0,0.00022191,2]
[323264925,1713857441628,-500.0,0.00022191,2]
[323264927,1713857441638,-500.0,0.00022191,2]
[323264929,1713857441649,-730.12,0.00022191,2]
[323264931,1713857441666,-312.08150455,0.00022191,2]
[323264933,1713857441675,-500.0,0.00022191,2]
[323264935,1713857441686,-500.0,0.00022191,2]
[323264937,1713857441696,-500.0,0.00022191,2]
[323264939,1713857441707,-500.0,0.00022191,2]
[323264941,1713857441717,-500.0,0.00022191,2]
[323264943,1713857441727,-500.0,0.00022191,2]
[323264945,1713857441736,-500.0,0.00022191,2]
[323264947,1713857441746,-500.0,0.00022191,2]
[323264949,1713857441755,-605.01,0.00022191,2]
[323264951,1713857441765,-374.40571692,0.00022191,2]
[323264953,1713857441776,-500.0,0.00022191,2]
[323264955,1713857441785,-302.16779516,0.00022191,2]
[323264957,1713857441794,-500.0,0.00022191,2]
[323264959,1713857441803,-500.0,0.00022191,2]
[323264961,1713857441812,-500.0,0.00022191,2]
[323264963,1713857441821,-500.0,0.00022191,2]
[323264965,1713857441831,-1338.47,0.00022191,2]
[323264967,1713857441841,-500.0,0.00022191,2]
[323264969,1713857441851,-151.38225387,0.00022191,2]
[323264971,1713857441861,-500.0,0.00022191,2]
[323264973,1713857441872,-653.66,0.00022191,2]
[323264975,1713857441882,-621.49,0.00022191,2]
[323264977,1713857441892,-500.0,0.00022191,2]
[323264979,1713857441903,-500.0,0.00022191,2]
[323264981,1713857441916,-500.0,0.00022191,2]
[323264982,1713857441927,-500.0,0.00022191,2]
[323264985,1713857441936,-500.0,0.00022191,2]
[323264986,1713857441946,-500.0,0.00022191,2]
[323264988,1713857441956,-500.0,0.00022191,2]
[323264990,1713857441966,-500.0,0.00022191,2]
[323264993,1713857441977,-705.51,0.00022191,2]
[323264995,1713857441987,-500.0,0.00022191,2]
[323264996,1713857441998,-500.0,0.00022191,2]
[323264998,1713857442008,-1179.36,0.00022191,2]
[323265001,1713857442018,-500.0,0.00022191,2]
[323265003,1713857442030,-500.0,0.00022191,2]
[323265005,1713857442041,-500.0,0.00022191,2]
[323265007,1713857442052,-500.0,0.00022191,2]
[323265009,1713857442062,-500.0,0.00022191,2]
[323265011,1713857442072,-636.79,0.00022191,2]
[323265013,1713857442082,-500.0,0.00022191,2]
[323265015,1713857442092,-558.84,0.00022191,2]
[323265017,1713857442101,-500.0,0.00022191,2]
[323265019,1713857442111,-500.0,0.00022191,2]
[323265021,1713857442122,-500.0,0.00022191,2]
[323265023,1713857442131,-500.0,0.00022191,2]
[323265025,1713857442141,-500.0,0.00022191,2]
[323265027,1713857442151,-500.0,0.00022191,2]
[323265029,1713857442164,-500.0,0.00022191,2]
[323265031,1713857442174,-500.0,0.00022191,2]
[323265033,1713857442184,-2199.78,0.00022191,2]
[323265035,1713857442194,-500.0,0.00022191,2]
[323265037,1713857442204,-500.0,0.00022191,2]
[323265039,1713857442214,-500.0,0.00022191,2]
[323265041,1713857442224,-500.0,0.00022191,2]
[323265043,1713857442234,-500.0,0.00022191,2]
[323265045,1713857442243,-741.32,0.00022191,2]
[323265047,1713857442253,-252.16044463,0.00022191,2]
[323265049,1713857442262,-896.09,0.00022191,2]
[323265051,1713857442272,-500.0,0.00022191,2]
[323265053,1713857442282,-984.24,0.00022191,2]
[323265055,1713857442291,-500.0,0.00022191,2]
[323265057,1713857442301,-176.78871976,0.00022191,2]
[323265059,1713857442311,-500.0,0.00022191,2]
[323265061,1713857442323,-500.0,0.00022191,2]
[323265063,1713857442333,-500.0,0.00022191,2]
[323265065,1713857442341,-715.16,0.00022191,2]
[323265067,1713857442351,-500.0,0.00022191,2]
[323265069,1713857442361,-500.0,0.00022191,2]
[323265071,1713857442371,-563.07,0.00022191,2]
[323265073,1713857442380,-1411.29,0.00022191,2]
[323265075,1713857442389,-500.0,0.00022191,2]
[323265077,1713857442401,-592.6,0.00022191,2]
[323265079,1713857442413,-1877.22,0.00022191,2]
[323265081,1713857442423,-2756.42,0.00022191,2]
[323265083,1713857442433,-500.0,0.00022191,2]
[323265085,1713857442444,-500.0,0.00022191,2]
[323265087,1713857442453,-500.0,0.00022191,2]
[323265089,1713857442462,-1123.15,0.00022191,2]
[323265091,1713857442472,-500.0,0.00022191,2]
[323265093,1713857442481,-500.0,0.00022191,2]
[323265095,1713857442491,-500.0,0.00022191,2]
[323265097,1713857442501,-500.0,0.00022191,2]
[323265099,1713857442511,-303.42878118,0.00022191,2]
[323265101,1713857442522,-22885.75,0.00022191,2]
[323265103,1713857442532,-1072.71,0.00022191,2]
[323265105,1713857442542,-500.0,0.00022191,2]
[323265106,1713857442552,-500.0,0.00022191,2]
[323265108,1713857442563,-500.0,0.00022191,2]
[323265111,1713857442573,-500.0,0.00022191,2]
[323265112,1713857442585,-502.84768752,0.00022191,2]
[323265115,1713857442596,-500.0,0.00022191,2]
[323265117,1713857442608,-500.0,0.00022191,2]
[323265118,1713857442618,-500.0,0.00022191,2]
[323265121,1713857442628,-629.29,0.00022191,2]
[323265122,1713857442638,-500.0,0.00022191,2]
[323265124,1713857442651,-1889.61,0.00022191,2]
[323265126,1713857442663,-501.6,0.00022191,2]
[323265129,1713857442674,-500.0,0.00022191,2]
[323265130,1713857442683,-501.6604523,0.00022191,2]
[323265133,1713857442693,-530.79,0.00022191,2]
[323265134,1713857442704,-500.0,0.00022191,2]
[323265137,1713857442714,-500.0,0.00022191,2]
[323265139,1713857442725,-1601.17,0.00022191,2]
[323265141,1713857442736,-1820.53,0.00022191,2]
[323265142,1713857442747,-500.0,0.00022191,2]
[323265145,1713857442758,-500.0,0.00022191,2]
[323265147,1713857442769,-2270.63,0.00022191,2]
[323265148,1713857442779,-500.0,0.00022191,2]
[323265150,1713857442789,-500.0,0.00022191,2]
[323265152,1713857442798,-500.0,0.00022191,2]
[323265154,1713857442807,-500.0,0.00022191,2]
[323265157,1713857442816,-500.0,0.00022191,2]
[323265159,1713857442826,-500.0,0.00022191,2]
[323265160,1713857442837,-500.0,0.00022191,2]
[323265162,1713857442846,-504.33697733,0.00022191,2]
[323265164,1713857442855,-2360.19,0.00022191,2]
[323265166,1713857442865,-531.02650304,0.00022191,2]
[323265168,1713857442874,-500.0,0.00022191,2]
[323265170,1713857442883,-500.0,0.00022191,2]
[323265172,1713857442892,-500.0,0.00022191,2]
[323265174,1713857442901,-500.0,0.00022191,2]
[323265176,1713857442913,-11820.51,0.00022191,2]
[323265178,1713857442923,-500.0,0.00022191,2]
[323265181,1713857442932,-502.27558034,0.00022191,2]
[323265183,1713857442941,-1643.65,0.00022191,2]
[323265185,1713857442950,-737.85,0.00022191,2]
[323265187,1713857442959,-687.51,0.00022191,2]
[323265189,1713857442968,-592.28,0.00022191,2]
[323265191,1713857442978,-500.0,0.00022191,2]
[323265193,1713857442989,-500.0,0.00022191,2]
[323265195,1713857442998,-500.0,0.00022191,2]
[323265197,1713857443007,-605.52569592,0.00022191,2]
[323265199,1713857443016,-846.49,0.00022191,2]
[323265201,1713857443025,-539.51301054,0.00022191,2]
[323265203,1713857443034,-683.76,0.00022191,2]
[323265205,1713857443042,-645.11,0.00022191,2]
[323265207,1713857443051,-500.0,0.00022191,2]
[323265209,1713857443060,-1729.02,0.00022191,2]
[323265211,1713857443070,-500.0,0.00022191,2]
[323265213,1713857443079,-1518.39,0.00022191,2]
[323265215,1713857443088,-500.0,0.00022191,2]
[323265218,1713857443097,-1796.84,0.00022191,2]
[323265221,1713857443106,-1244.08,0.00022191,2]
[323265223,1713857443115,-500.0,0.00022191,2]
[323265226,1713857443124,-500.0,0.00022191,2]
[323265229,1713857443134,-679.27,0.00022191,2]
[323265233,1713857443143,-3030.3,0.00022191,2]
[323265235,1713857443153,-500.0,0.00022464,2]
[323265237,1713857443164,-500.0,0.00022465,2]
[323265251,1713857443249,-517.37732795,0.00022465,2]
[323265253,1713857443268,-577.68240029,0.00022465,2]
[323265255,1713857443278,-500.0,0.00022465,2]
[323265258,1713857443287,-548.4,0.00022465,2]
[323265259,1713857443297,-500.0,0.00022465,2]
[323265261,1713857443306,-500.0,0.00022465,2]
[323265263,1713857443316,-500.0,0.00022465,2]
[323265265,1713857443326,-500.0,0.00022465,2]
[323265268,1713857443336,-500.0,0.00022465,2]
[323265270,1713857443346,-730.12,0.00022465,2]
[323265271,1713857443355,-500.0,0.00022465,2]
[323265273,1713857443364,-500.0,0.00022465,2]
[323265275,1713857443373,-356.09888771,0.00022465,2]
[323265277,1713857443381,-500.0,0.00022465,2]
[323265279,1713857443390,-500.0,0.00022465,2]
[323265281,1713857443399,-507.72233272,0.00022465,2]
[323265283,1713857443411,-500.0,0.00022465,2]
[323265285,1713857443420,-500.0,0.00022465,2]
[323265288,1713857443429,-605.01,0.00022465,2]
[323265290,1713857443438,-500.0,0.00022465,2]
[323265291,1713857443448,-500.0,0.00022465,2]
[323265294,1713857443458,-500.0,0.00022465,2]
[323265296,1713857443467,-500.0,0.00022465,2]
[323265297,1713857443476,-1338.47,0.00022465,2]
[323265299,1713857443485,-500.0,0.00022465,2]
[323265301,1713857443494,-178.51421196,0.00022465,2]
[323265303,1713857443503,-653.66,0.00022465,2]
[323265305,1713857443512,-621.49,0.00022465,2]
[323265307,1713857443521,-500.0,0.00022465,2]
[323265309,1713857443530,-500.0,0.00022465,2]
[323265311,1713857443540,-500.0,0.00022465,2]
[323265313,1713857443549,-495.42798901,0.00022465,2]
[323265315,1713857443558,-705.51,0.00022465,2]
[323265317,1713857443567,-500.0,0.00022465,2]
[323265319,1713857443576,-500.0,0.00022465,2]
[323265321,1713857443585,-1179.36,0.00022465,2]
[323265323,1713857443595,-500.0,0.00022465,2]
[323265325,1713857443604,-500.0,0.00022465,2]
[323265327,1713857443613,-500.0,0.00022465,2]
[323265329,1713857443622,-500.0,0.00022465,2]
[323265331,1713857443631,-636.79,0.00022465,2]
[323265333,1713857443641,-500.0,0.00022465,2]
[323265335,1713857443650,-558.84,0.00022465,2]
[323265337,1713857443659,-500.0,0.00022465,2]
[323265339,1713857443668,-459.58726092,0.00022465,2]
[323265349,1713857443757,-40.41273908,0.00022465,2]
[323265351,1713857443766,-500.0,0.00022465,2]
[323265353,1713857443775,-135.02115858,0.00022465,2]
[323265355,1713857443787,-364.97884142,0.00022465,2]
[323265357,1713857443796,-500.0,0.00022465,2]
[323265359,1713857443806,-500.0,0.00022465,2]
[323265361,1713857443815,-500.0,0.00022465,2]
[323265363,1713857443824,-500.0,0.00022465,2]
[323265365,1713857443833,-115.76656064,0.00022465,2]
[323265367,1713857443845,-2084.01343936,0.00022465,2]
[323265370,1713857443855,-500.0,0.00022465,2]
[323265372,1713857443864,-500.0,0.00022465,2]
[323265374,1713857443873,-500.0,0.00022465,2]
[323265376,1713857443882,-500.0,0.00022465,2]
[323265378,1713857443891,-741.32,0.00022465,2]
[323265380,1713857443900,-896.09,0.00022465,2]
[323265382,1713857443909,-506.52181943,0.00022465,2]
[323265383,1713857443918,-984.24,0.00022465,2]
[323265385,1713857443926,-500.0,0.00022465,2]
[323265387,1713857443935,-517.75318014,0.00022465,2]
[323265389,1713857443944,-715.16,0.00022465,2]
[323265391,1713857443953,-500.0,0.00022465,2]
[323265394,1713857443961,-563.07,0.00022465,2]
[323265396,1713857443970,-1411.29,0.00022465,2]
[323265398,1713857443978,-592.6,0.00022465,2]
[323265400,1713857443988,-779.34156107,0.00022465,2]
[323266144,1713858158919,1000.0,0.00025,30]
[323266146,1713858246378,1000.0,0.00021,21]
[323266147,1713858268186,1000.0,0.00022,22]
[323266148,1713858297861,1000.0,0.00022,13]
[323266150,1713858334175,-154.82968734,0.000174,2]
[323266151,1713858334195,-471.87732034,0.00017401,2]
[323266152,1713858334214,-1202.20163216,0.00017401,2]
[323266153,1713858334233,-154.82968734,0.00017401,2]
[323266154,1713858334253,-272.57129579,0.00017401,2]
[323266155,1713858334273,-162.02240911,0.00017401,2]
[323266156,1713858334291,-247.22010741,0.00017402,2]
[323266157,1713858334310,-701.94771615,0.00017403,2]
[323266158,1713858334329,-1578.09578874,0.00017403,2]
[323266159,1713858334348,-274.01060323,0.00017404,2]
[323266160,1713858334367,-2623.97456043,0.00017495,2]
[323266161,1713858334388,-521.52942585,0.00017496,2]
[323266162,1713858334407,-362.01061268,0.00017497,2]
[323266163,1713858334427,-154.82968734,0.00017497,2]
[323266164,1713858334446,-564.51895848,0.00017497,2]
[323266165,1713858334465,-300.0,0.00017497,2]
[323266166,1713858334485,-300.0,0.00017497,2]
[323266167,1713858334505,-408.87824963,0.00017498,2]
[323266168,1713858334526,-5801.77357762,0.00017498,2]
[323266169,1713858334545,-1550.76359454,0.00017499,2]
[323266170,1713858334566,-1675.82446385,0.00017499,2]
[323266171,1713858334587,-212.06825711,0.00017499,2]
[323266172,1713858334607,-157.76351589,0.00017499,2]
[323266173,1713858334630,-58699.48816287,0.00017501,2]
[323266174,1713858335836,1000.0,0.00022,17]
[323266175,1713858338114,-1878.1368462,0.000174,2]
[323266176,1713858338137,-154.82968734,0.000174,2]
[323266177,1713858338158,-13860.60222811,0.00017501,2]
[323266178,1713858338178,-2611.444763,0.00017502,2]
[323266179,1713858338198,-4767.07526728,0.00017513,2]
[323266182,1713858410611,-165.0,0.00025723,35]
[323266183,1713858410632,-165.0,0.00025733,35]
[323266184,1713858410654,-165.0,0.00025743,35]
[323266185,1713858426004,-150.5,0.00025469,35]
[323266186,1713858426030,-7549.5,0.00025545,30]
[323266187,1713858438084,-300.0,0.0001751,2]
[323266188,1713858438106,-300.0,0.0001751,2]
[323266189,1713858438127,-364.16778964,0.00017511,2]
[323266190,1713858438150,-308.52220367,0.00017512,2]
[323266191,1713858438170,-247.22010741,0.00017512,2]
[323266192,1713858438191,-362.01061268,0.00017512,2]
[323266193,1713858438211,-563.02588542,0.00017512,2]
[323266194,1713858438232,-199.80945329,0.00017512,2]
[323266195,1713858438253,-409.6894094,0.00017512,2]
[323266196,1713858438272,-251.10283876,0.00017512,2]
[323266197,1713858438293,-158.35981322,0.00017512,2]
[323266198,1713858438312,-423.3179575,0.00017512,2]
[323266199,1713858438332,-7558.80695294,0.00017513,2]
[323266201,1713858470677,1000.0,0.00022,16]
[323266202,1713858483302,1000.0,0.00022,15]
[323266203,1713858489844,1000.0,0.00022,13]
[323266229,1713858632693,-471.87732034,0.0001751,2]
[323266230,1713858632702,-1090.52068603,0.0001751,2]
[323266231,1713858632711,-300.0,0.00017511,2]
[323266232,1713858632721,-300.0,0.00017511,2]
[323266233,1713858632730,-1122.06316238,0.00017513,2]
[323266267,1713858638689,-11452.0546174,0.00017513,2]
[323266269,1713858638698,-1955.3744156,0.00018082,2]
[323266271,1713858638707,-301.57721,0.00018084,2]
[323266273,1713858638716,-603.3578092,0.00018511,2]
[323266275,1713858638727,-673.03024478,0.00018512,2]
[323266276,1713858638736,-156.21791875,0.0001853,2]
[323266278,1713858638745,-206.88595551,0.00018531,2]
[323266281,1713858638755,-1238.57673728,0.00018531,2]
[323266282,1713858638764,-239.75927787,0.0001887,2]
[323266285,1713858638776,-1830.57518397,0.000189,2]
[323266287,1713858638786,-189.19295912,0.00019115,2]
[323266289,1713858638796,-420.0,0.00019116,2]
[323266291,1713858638805,-167.752814,0.00019178,2]
[323266293,1713858638814,-435.9026688,0.00019178,4]
[323266295,1713858638824,-162.930037,0.00019178,2]
[323266296,1713858638833,-420.0,0.00019263,2]
[323266298,1713858638842,-156.73463544,0.00019534,2]
[323266300,1713858638851,-12610.71640316,0.00019635,2]
[323266302,1713858638860,-2000.0,0.00019646,2]
[323266304,1713858638870,-674.43877435,0.00019745,2]
[323266306,1713858638879,-173.81104632,0.00019745,2]
[323266308,1713858638888,-329.8363815,0.00019745,2]
[323266310,1713858638898,-283.38557575,0.00019745,2]
[323266312,1713858638908,-540.26932456,0.00019745,2]
[323266315,1713858638917,-157.19474891,0.00019745,2]
[323266317,1713858638926,-500.0,0.00019745,2]
[323266318,1713858638935,-500.0,0.00019745,2]
[323266320,1713858638944,-500.0,0.00019745,2]
[323266322,1713858638954,-500.0,0.00019745,2]
[323266324,1713858638963,-484.4036651,0.00019745,2]
[323266326,1713858638972,-500.0,0.00019745,2]
[323266328,1713858638981,-500.0,0.00019745,2]
[323266330,1713858638990,-500.0,0.00019745,2]
[323266332,1713858638998,-500.0,0.00019745,2]
[323266334,1713858639007,-500.0,0.00019745,2]
[323266336,1713858639016,-500.0,0.00019745,2]
[323266338,1713858639026,-553.52659239,0.00019745,2]
[323266340,1713858639035,-500.0,0.00019745,2]
[323266342,1713858639044,-500.0,0.00019745,2]
[323266344,1713858639053,-500.0,0.00019745,2]
[323266346,1713858639062,-599.3528015,0.00019745,2]
[323266348,1713858639072,-500.0,0.00019745,2]
[323266350,1713858639082,-500.0,0.00019745,2]
[323266352,1713858639091,-500.0,0.00019745,2]
[323266354,1713858639100,-500.0,0.00019745,2]
[323266356,1713858639109,-304.70237379,0.00019745,2]
[323266358,1713858639118,-500.0,0.00019745,2]
[323266360,1713858639127,-500.0,0.00019745,2]
[323266362,1713858639136,-500.0,0.00019745,2]
[323266364,1713858639146,-500.0,0.00019745,2]
[323266366,1713858639155,-500.0,0.00019745,2]
[323266368,1713858639164,-500.0,0.00019745,2]
[323266370,1713858639173,-500.0,0.00019745,2]
[323266372,1713858639182,-499.99999999,0.00019745,2]
[323266374,1713858639191,-47419.99870864,0.00019746,2]
[323266376,1713858639201,-167.56822632,0.000199,2]
[323266378,1713858639210,-12094.73995121,0.00019997,2]
[323266394,1713858639345,-530.38635291,0.00019998,2]
[323266396,1713858639355,-1371.03323779,0.00019998,2]
[323266398,1713858639364,-1578.09578874,0.00019998,2]
[323266400,1713858639374,-426.8148149,0.00019998,2]
[323266402,1713858639383,-199.44025601,0.00019998,2]
[323266404,1713858639393,-1591.21433637,0.00019998,2]
[323266406,1713858639402,-339.31634098,0.00019998,2]
[323266408,1713858639411,-272.57129579,0.00019999,2]
[323266410,1713858639421,-250.87439892,0.00019999,2]
[323266412,1713858639430,-158.16815901,0.00019999,2]
[323266414,1713858639440,-562.97631634,0.00019999,2]
[323266417,1713858639451,-456.15268175,0.00019999,2]
[323266419,1713858639461,-656.98368851,0.00019999,2]
[323266421,1713858639470,-420.69010907,0.00019999,2]
[323266423,1713858639480,-500.0,0.00019999,2]
[323266425,1713858639489,-500.0,0.00019999,2]
[323266427,1713858639499,-500.0,0.00019999,2]
[323266429,1713858639508,-500.0,0.00019999,2]
[323266431,1713858639518,-346.10455748,0.00019999,2]
[323266433,1713858639528,-500.0,0.00019999,2]
[323266435,1713858639537,-500.0,0.00019999,2]
[323266437,1713858639547,-253.55997539,0.00019999,2]
[323266439,1713858639557,-500.0,0.00019999,2]
[323266441,1713858639566,-461.92467002,0.00019999,2]
[323266442,1713858639575,-185.77754814,0.00019999,2]
[323266445,1713858639585,-319.72058798,0.0002,2]
[323266447,1713858639594,-154.82968734,0.0002,2]
[323266449,1713858639604,-689.46452953,0.0002,2]
[323266451,1713858639613,-238.88786072,0.0002,2]
[323266453,1713858639622,-277.98874346,0.0002,2]
[323266455,1713858639631,-354.80715765,0.0002,2]
[323266457,1713858639639,-241.51912105,0.0002,2]
[323266458,1713858639649,-1442.68762834,0.0002,2]
[323266461,1713858639658,-678.04287141,0.0002,2]
[323266462,1713858639668,-154.82968734,0.0002,2]
[323266465,1713858639678,-5459.67159958,0.0002,2]
[323266467,1713858639689,-183.31048361,0.0002,2]
[323266468,1713858639698,-80000.0,0.0002,2]
[323266470,1713858639708,-400.0,0.0002,2]
[323266472,1713858639718,-7901.0,0.0002,4]
[323266475,1713858639728,-200.0,0.0002,2]
[323266477,1713858639737,-615.75933218,0.0002,2]
[323266478,1713858639745,-156.73463543,0.00020265,2]
[323266481,1713858639755,-587.0,0.00020869,2]
[323266482,1713858639764,-167.56822632,0.00020996,2]
[323266485,1713858639775,-7925.57647667,0.00021,2]
[323266486,1713858639784,-3344.28028285,0.00021,2]
[323266488,1713858639793,-587.0,0.00021189,2]
[323266490,1713858639802,-5000.0,0.000213,2]
[323266493,1713858639812,-44444.0,0.00021817,3]
[323266495,1713858639822,-500.0,0.00021917,2]
[323266497,1713858639831,-500.0,0.00021917,2]
[323266499,1713858639840,-517.37732795,0.00021917,2]
[323266500,1713858639850,-500.0,0.00021917,2]
[323266502,1713858639859,-500.0,0.00021917,2]
[323266505,1713858639868,-151.38225387,0.00021917,2]
[323266506,1713858639878,-302.16779516,0.00021917,2]
[323266508,1713858639887,-500.0,0.00021917,2]
[323266510,1713858639897,-500.0,0.00021917,2]